[Event "16th Deltalift Open 2019"]
[Site "Halmstad"]
[Date "2019.05.30"]
[Round "2.23"]
[White "Wahlstrom, Lennart"]
[Black "Bernhardsson, Sten"]
[Result "1/2-1/2"]
[ECO "B44"]
[WhiteElo "2196"]
[BlackElo "1992"]
[Annotator "ChessBase"]
[PlyCount "88"]
[EventDate "2019.05.30"]
[EventType "swiss"]
[EventCountry "SWE"]
[SourceTitle "playchess.com"]
[Source "ChessBase"]
[SourceQuality "1"]
[TimeControl "1800+12"]

1. e4 {[%emt 0:00:00]} c5 {[%emt 0:01:33]} 2. Nf3 {[%emt 0:00:00]} e6 {[%emt 0:00:02]} 3. d4 {[%emt 0:00:04]} cxd4 {[%emt 0:00:04]} 4. Nxd4 {[%emt 0:00:02]} Nc6 {[%emt 0:00:04]} 5. Be2 {[%emt 0:00:41]} Nf6 {[%emt 0:00:41]} 6. Nc3 {[%emt 0:00:03]} a6 {[%emt 0:00:09]} 7. O-O {[%emt 0:00:19]} Be7 {[%emt 0:00:15]} 8. Be3 {[%emt 0:00:38]} O-O {[%emt 0:00:10]} 9. f4 {[%emt 0:00:17]} d6 {[%emt 0:01:23]} 10. Qe1 {[%emt 0:00:52]} Bd7 {[%emt 0:01:47]} 11. Qg3 {[%emt 0:02:56]} Nxd4 {[%emt 0:01:34]} 12. Bxd4 {[%emt 0:00:03]} Bc6 {[%emt 0:00:13]} 13. Bf3 {[%emt 0:04:26]} Rc8 {[%emt 0:02:42]} 14. Rad1 {[%emt 0:02:10]} Qa5 {[%emt 0:02:19]} 15. e5 {[%emt 0:10:39]} dxe5 {[%emt 0:00:47]} 16. Bxe5 Bxf3 {[%emt 0:01:47]} 17. Qxf3 {[%emt 0:01:44]} Qb6+ {[%emt 0:02:33]} 18. Kh1 {[%emt 0:01:27]} Rfd8 {[%emt 0:00:41]} 19. f5 {[%emt 0:04:25]} Rxd1 {[%emt 0:01:59]} 20. Rxd1 {[%emt 0:00:08]} exf5 {[%emt 0:00:20]} 21. Bxf6 {[%emt 0:01:29]} Bxf6 {[%emt 0:01:02]} 22. Nd5 {[%emt 0:00:25]} Qe6 {[%emt 0:02:34]} 23. Nxf6+ {[%emt 0:00:26]} Qxf6 {[%emt 0:00:23]} 24. Qxb7 Re8 {[%emt 0:00:35]} 25. Qd7 {[%emt 0:00:36]} Qe5 {[%emt 0:00:23]} 26. h3 {[%emt 0:00:36]} g6 {[%emt 0:00:39]} 27. Qd4 {[%emt 0:00:05]} Qa5 {[%emt 0:00:33]} 28. c4 {[%emt 0:00:26]} Qxa2 {[%emt 0:01:48]} 29. c5 {[%emt 0:00:02]} Qe6 {[%emt 0:01:56]} 30. Qd6 {[%emt 0:00:23]} Qxd6 {[%emt 0:00:51]} 31. Rxd6 {[%emt 0:00:02]} Rc8 {[%emt 0:00:05]} 32. b4 {[%emt 0:00:16]} a5 {[%emt 0:00:02]} 33. bxa5 {[%emt 0:00:18]} Rxc5 {[%emt 0:00:02]} 34. a6 {[%emt 0:00:02]} Ra5 {[%emt 0:00:05]} 35. Kh2 {[%emt 0:00:19]} Kf8 {[%emt 0:00:10]} 36. Kg3 {[%emt 0:00:03]} Ra4 {[%emt 0:00:07]} 37. Kf3 {[%emt 0:00:03]} Ke7 {[%emt 0:00:02]} 38. Rb6 {[%emt 0:00:01]} g5 {[%emt 0:00:23]} 39. Ke3 {[%emt 0:00:03]} h5 {[%emt 0:00:35]} 40. Kd3 {[%emt 0:00:06]} f4 {[%emt 0:00:09]} 41. Rh6 {[%emt 0:00:36]} g4 {[%emt 0:00:18]} 42. Rxh5 {[%emt 0:00:16]} gxh3 {[%emt 0:00:19]} 43. Rxh3 {[%emt 0:00:07]} Rxa6 {[%emt 0:00:07]} 44. Ke4 {[%emt 0:00:04]} Ra2 {[%emt 0:00:47]} 1/2-1/2

[Event "16th Deltalift Open 2019"]
[Site "Halmstad"]
[Date "2019.05.30"]
[Round "3.2"]
[White "Silseth, Simon"]
[Black "Hector, Jonny"]
[Result "0-1"]
[ECO "C24"]
[WhiteElo "2268"]
[BlackElo "2488"]
[Annotator "ChessBase"]
[PlyCount "122"]
[EventDate "2019.05.30"]
[EventType "swiss"]
[EventCountry "SWE"]
[SourceTitle "playchess.com"]
[Source "ChessBase"]
[SourceQuality "1"]
[TimeControl "1800+12"]

1. e4 {[%emt 0:00:00]} e5 {[%emt 0:00:00]} 2. Bc4 {[%emt 0:00:10]} Nf6 {[%emt 0:00:00]} 3. d3 {[%emt 0:00:02]} c6 {[%emt 0:00:09]} 4. Nf3 {[%emt 0:00:14]} d5 {[%emt 0:00:04]} 5. Bb3 {[%emt 0:00:15]} a5 {[%emt 0:00:28]} 6. a3 {[%emt 0:00:38]} a4 {[%emt 0:00:06]} 7. Ba2 {[%emt 0:00:20]} Bd6 {[%emt 0:00:09]} 8. Nc3 {[%emt 0:00:19]} Be6 {[%emt 0:00:11]} 9. exd5 {[%emt 0:00:44]} cxd5 {[%emt 0:00:17]} 10. d4 {[%emt 0:00:53]} e4 {[%emt 0:00:30]} 11. Ne5 {[%emt 0:00:18]} Nc6 {[%emt 0:00:53]} 12. Be3 {[%emt 0:04:37]} Nxe5 {[%emt 0:02:06]} 13. dxe5 {[%emt 0:00:02]} Bxe5 {[%emt 0:00:05]} 14. Bd4 {[%emt 0:00:09]} Qc7 {[%emt 0:01:21]} 15. Qd2 {[%emt 0:00:37]} Bxd4 {[%emt 0:00:25]} 16. Qxd4 {[%emt 0:00:03]} O-O {[%emt 0:00:25]} 17. h3 {[%emt 0:01:56]} Rfd8 {[%emt 0:01:35]} 18. O-O {[%emt 0:01:03]} Nh5 {[%emt 0:00:46]} 19. Rfe1 {[%emt 0:05:38]} Nf4 {[%emt 0:01:15]} 20. Rad1 {[%emt 0:01:51]} Rd7 {[%emt 0:04:29]} 21. Re3 {[%emt 0:03:26]} Ra5 {[%emt 0:03:41]} 22. Nxa4 {[%emt 0:04:15]} Qxc2 {[%emt 0:00:37]} 23. Nb6 {[%emt 0:00:09]} Rd8 {[%emt 0:03:22]} 24. Rd2 {[%emt 0:00:49]} Qc1+ {[%emt 0:00:45]} 25. Rd1 {[%emt 0:00:15]} Qc2 {[%emt 0:02:41]} 26. Rd2 {[%emt 0:00:37]} Qc7 {[%emt 0:00:03]} 27. Rxe4 {[%emt 0:01:01]} Rc5 {[%emt 0:00:06]} 28. Re1 {[%emt 0:01:35]} Nxh3+ {[%emt 0:02:30]} 29. gxh3 {[%emt 0:00:05]} Qxb6 {[%emt 0:00:03]} 30. b4 {[%emt 0:01:06]} Rc6 {[%emt 0:00:32]} 31. Qxb6 {[%emt 0:00:10]} Rxb6 {[%emt 0:00:02]} 32. Red1 {[%emt 0:00:18]} Kf8 {[%emt 0:00:22]} 33. Rd3 {[%emt 0:00:07]} Rbd6 {[%emt 0:00:20]} 34. Rd4 {[%emt 0:00:07]} Bxh3 {[%emt 0:01:00]} 35. Rxd5 {[%emt 0:00:07]} Rxd5 {[%emt 0:00:15]} 36. Rxd5 {[%emt 0:00:07]} Ra8 {[%emt 0:00:17]} 37. Rd3 {[%emt 0:00:11]} Bf5 {[%emt 0:00:32]} 38. Rf3 {[%emt 0:00:13]} g6 {[%emt 0:00:08]} 39. Bd5 {[%emt 0:00:09]} Ra7 {[%emt 0:00:16]} 40. Rc3 {[%emt 0:00:03]} b6 {[%emt 0:00:24]} 41. Rc6 {[%emt 0:00:29]} Rxa3 {[%emt 0:00:23]} 42. Rxb6 {[%emt 0:00:03]} Rd3 {[%emt 0:00:08]} 43. Rb8+ {[%emt 0:00:21]} Kg7 {[%emt 0:00:12]} 44. Bc4 {[%emt 0:00:11]} Rd4 {[%emt 0:00:06]} 45. Bb3 {[%emt 0:00:08]} Be4 {[%emt 0:00:07]} 46. b5 {[%emt 0:00:14]} Rb4 {[%emt 0:00:12]} 47. Ba2 {[%emt 0:00:08]} g5 {[%emt 0:00:26]} 48. Re8 {[%emt 0:00:11]} f5 {[%emt 0:00:33]} 49. Re7+ {[%emt 0:00:19]} Kg6 {[%emt 0:00:29]} 50. Re6+ {[%emt 0:00:17]} Kh5 {[%emt 0:00:02]} 51. Re5 {[%emt 0:00:08]} Ra4 {[%emt 0:00:25]} 52. f3 {[%emt 0:00:40]} Rxa2 {[%emt 0:00:46]} 53. fxe4 {[%emt 0:00:02]} fxe4 {[%emt 0:00:15]} 54. Rxe4 {[%emt 0:01:08]} Rb2 {[%emt 0:00:02]} 55. Re7 {[%emt 0:00:09]} h6 {[%emt 0:00:02]} 56. Rb7 {[%emt 0:00:04]} Kg4 {[%emt 0:00:03]} 57. b6 {[%emt 0:00:06]} h5 {[%emt 0:00:03]} 58. Rb8 {[%emt 0:00:04]} Kg3 {[%emt 0:00:03]} 59. Kf1 {[%emt 0:00:02]} g4 {[%emt 0:00:05]} 60. b7 {[%emt 0:00:09]} h4 {[%emt 0:00:03]} 61. Ke1 {[%emt 0:00:10]} h3 {[%emt 0:00:05]} 0-1

[Event "16th Deltalift Open 2019"]
[Site "Halmstad"]
[Date "2019.05.30"]
[Round "3.3"]
[White "Cramling, Pia"]
[Black "Carlsson, Ludvig"]
[Result "1-0"]
[ECO "A10"]
[WhiteElo "2454"]
[BlackElo "2208"]
[Annotator "ChessBase"]
[PlyCount "87"]
[EventDate "2019.05.30"]
[EventType "swiss"]
[EventCountry "SWE"]
[SourceTitle "playchess.com"]
[Source "ChessBase"]
[SourceQuality "1"]
[TimeControl "1800+12"]

1. c4 {[%emt 0:00:00]} b6 {[%emt 0:00:00]} 2. Nc3 {[%emt 0:00:10]} Bb7 {[%emt 0:00:01]} 3. e4 {[%emt 0:00:03]} e5 {[%emt 0:00:05]} 4. Nf3 {[%emt 0:00:18]} Nc6 {[%emt 0:01:06]} 5. a3 {[%emt 0:00:04]} a5 {[%emt 0:01:41]} 6. d4 {[%emt 0:00:06]} exd4 {[%emt 0:01:22]} 7. Nxd4 {[%emt 0:00:03]} Nxd4 {[%emt 0:01:29]} 8. Qxd4 {[%emt 0:00:03]} Ne7 {[%emt 0:00:05]} 9. Be3 {[%emt 0:01:07]} Nc6 {[%emt 0:00:04]} 10. Qd2 {[%emt 0:00:02]} Bc5 {[%emt 0:00:14]} 11. Be2 {[%emt 0:00:08]} O-O {[%emt 0:01:31]} 12. O-O {[%emt 0:00:12]} Bxe3 {[%emt 0:02:31]} 13. Qxe3 {[%emt 0:00:03]} d6 {[%emt 0:00:02]} 14. b3 {[%emt 0:01:08]} h6 {[%emt 0:00:20]} 15. Rad1 {[%emt 0:00:24]} Rc8 {[%emt 0:01:23]} 16. Bg4 {[%emt 0:01:00]} Rb8 {[%emt 0:00:30]} 17. f4 {[%emt 0:00:14]} Re8 {[%emt 0:01:01]} 18. Qg3 {[%emt 0:00:29]} Bc8 {[%emt 0:01:47]} 19. Bf3 {[%emt 0:00:59]} Re6 {[%emt 0:00:56]} 20. e5 {[%emt 0:01:00]} Ne7 {[%emt 0:00:44]} 21. Qf2 {[%emt 0:01:40]} c6 {[%emt 0:04:24]} 22. Ne4 {[%emt 0:01:04]} Nf5 {[%emt 0:01:13]} 23. Bg4 {[%emt 0:01:43]} Rg6 {[%emt 0:00:12]} 24. Bxf5 {[%emt 0:01:28]} Bxf5 {[%emt 0:00:05]} 25. Nxd6 {[%emt 0:00:11]} Bg4 {[%emt 0:01:15]} 26. Rd3 {[%emt 0:01:32]} Qe7 {[%emt 0:00:57]} 27. Re1 {[%emt 0:01:45]} Bc8 {[%emt 0:01:43]} 28. f5 {[%emt 0:02:04]} Rg5 {[%emt 0:00:16]} 29. Rf3 {[%emt 0:02:33]} c5 {[%emt 0:01:38]} 30. Ne4 {[%emt 0:01:41]} Rg4 {[%emt 0:00:10]} 31. Rg3 {[%emt 0:00:57]} Rxg3 {[%emt 0:00:09]} 32. Nxg3 {[%emt 0:00:29]} Qg5 {[%emt 0:00:43]} 33. Qe3 {[%emt 0:01:53]} Qg4 {[%emt 0:01:30]} 34. h3 {[%emt 0:01:04]} Qh4 {[%emt 0:00:06]} 35. Rd1 {[%emt 0:00:21]} Rb7 {[%emt 0:01:07]} 36. Rd5 {[%emt 0:04:30]} Bd7 {[%emt 0:00:34]} 37. Qd3 {[%emt 0:00:18]} Bc6 {[%emt 0:00:54]} 38. Rd8+ {[%emt 0:00:03]} Kh7 {[%emt 0:00:03]} 39. Rd6 {[%emt 0:00:46]} Rd7 {[%emt 0:01:19]} 40. f6+ {[%emt 0:00:24]} Kg8 {[%emt 0:00:02]} 41. Kh2 {[%emt 0:00:58]} Rxd6 {[%emt 0:02:22]} 42. Qxd6 {[%emt 0:00:02]} Be4 {[%emt 0:00:02]} 43. fxg7 {[%emt 0:00:21]} Kxg7 {[%emt 0:00:34]} 44. Qf6+ {[%emt 0:00:10]} 1-0

[Event "16th Deltalift Open 2019"]
[Site "Halmstad"]
[Date "2019.05.30"]
[Round "3.4"]
[White "Johnson, Daniel"]
[Black "Sjodahl, Pontus"]
[Result "0-1"]
[ECO "E32"]
[WhiteElo "2233"]
[BlackElo "2435"]
[Annotator "ChessBase"]
[PlyCount "116"]
[EventDate "2019.05.30"]
[EventType "swiss"]
[EventCountry "SWE"]
[SourceTitle "playchess.com"]
[Source "ChessBase"]
[SourceQuality "1"]
[TimeControl "1800+12"]

1. d4 {[%emt 0:02:03]} Nf6 {[%emt 0:00:00]} 2. c4 {[%emt 0:00:02]} e6 {[%emt 0:00:00]} 3. Nc3 {[%emt 0:00:02]} Bb4 {[%emt 0:00:02]} 4. Qc2 {[%emt 0:00:02]} O-O {[%emt 0:00:55]} 5. Nf3 {[%emt 0:00:05]} d5 {[%emt 0:01:23]} 6. cxd5 {[%emt 0:00:12]} exd5 {[%emt 0:00:58]} 7. Bg5 {[%emt 0:00:41]} Qd6 {[%emt 0:01:07]} 8. e3 {[%emt 0:03:58]} Ne4 {[%emt 0:03:49]} 9. Bf4 {[%emt 0:01:01]} Qe7 {[%emt 0:00:54]} 10. Bd3 {[%emt 0:01:51]} Bf5 {[%emt 0:02:29]} 11. O-O {[%emt 0:01:37]} Rd8 {[%emt 0:02:14]} 12. Ne2 {[%emt 0:08:22]} Bd6 {[%emt 0:02:33]} 13. Bxd6 {[%emt 0:01:54]} Rxd6 {[%emt 0:00:09]} 14. Rfc1 {[%emt 0:02:44]} c6 {[%emt 0:01:25]} 15. Ng3 {[%emt 0:00:56]} Nxg3 {[%emt 0:01:13]} 16. hxg3 {[%emt 0:00:05]} Bxd3 {[%emt 0:00:14]} 17. Qxd3 {[%emt 0:00:02]} a5 {[%emt 0:01:27]} 18. Re1 {[%emt 0:05:38]} Re6 {[%emt 0:00:32]} 19. Ne5 {[%emt 0:01:44]} Na6 {[%emt 0:01:40]} 20. Rac1 {[%emt 0:00:19]} Nc7 {[%emt 0:01:15]} 21. Qb3 {[%emt 0:00:20]} Nb5 {[%emt 0:00:43]} 22. a4 {[%emt 0:00:12]} Nd6 {[%emt 0:00:03]} 23. Qa3 {[%emt 0:00:10]} h5 {[%emt 0:00:19]} 24. Nf3 {[%emt 0:00:26]} Re8 {[%emt 0:01:35]} 25. Qc3 {[%emt 0:00:18]} Qd8 {[%emt 0:00:17]} 26. b3 {[%emt 0:00:08]} Ne4 {[%emt 0:00:16]} 27. Qb2 {[%emt 0:00:17]} Qb6 {[%emt 0:01:14]} 28. Qe2 {[%emt 0:00:11]} Qb4 {[%emt 0:00:26]} 29. Ne5 {[%emt 0:00:11]} g6 {[%emt 0:00:29]} 30. Nd3 {[%emt 0:00:12]} Qb6 {[%emt 0:00:30]} 31. Nf4 {[%emt 0:00:14]} R6e7 {[%emt 0:00:08]} 32. Qc2 {[%emt 0:00:13]} Kg7 {[%emt 0:00:33]} 33. Rb1 {[%emt 0:00:10]} Rh8 {[%emt 0:01:31]} 34. b4 {[%emt 0:00:02]} axb4 {[%emt 0:00:09]} 35. Nd3 {[%emt 0:00:16]} Ra8 {[%emt 0:00:47]} 36. Rxb4 {[%emt 0:00:06]} Qd8 {[%emt 0:00:22]} 37. Reb1 {[%emt 0:00:02]} Ra7 {[%emt 0:00:08]} 38. Nc5 {[%emt 0:00:18]} Nd6 {[%emt 0:00:12]} 39. Nd3 {[%emt 0:00:27]} Nc4 {[%emt 0:00:25]} 40. Qe2 {[%emt 0:00:12]} Qa8 {[%emt 0:00:17]} 41. Nc5 {[%emt 0:00:16]} Nd6 {[%emt 0:00:51]} 42. Qc2 {[%emt 0:00:06]} Qc8 {[%emt 0:00:30]} 43. Qe2 {[%emt 0:00:16]} Qf5 {[%emt 0:00:12]} 44. Qf3 {[%emt 0:00:12]} Qc8 {[%emt 0:00:36]} 45. Qe2 {[%emt 0:00:07]} Nc4 {[%emt 0:00:10]} 46. Nd3 {[%emt 0:00:16]} b6 {[%emt 0:00:53]} 47. Rc1 {[%emt 0:00:13]} Qe8 {[%emt 0:00:20]} 48. Nb2 {[%emt 0:00:07]} c5 {[%emt 0:00:48]} 49. dxc5 {[%emt 0:00:13]} bxc5 {[%emt 0:00:01]} 50. Rb3 {[%emt 0:00:16]} Kg8 {[%emt 0:00:37]} 51. Nxc4 {[%emt 0:00:09]} dxc4 {[%emt 0:00:02]} 52. Qxc4 {[%emt 0:00:05]} Qxa4 {[%emt 0:00:19]} 53. Rb8+ {[%emt 0:00:09]} Kg7 {[%emt 0:00:12]} 54. Qc3+ {[%emt 0:00:04]} f6 {[%emt 0:00:05]} 55. Qxc5 {[%emt 0:00:20]} Qd7 {[%emt 0:00:12]} 56. Qc4 {[%emt 0:00:12]} Qe6 {[%emt 0:00:06]} 57. Qf4 {[%emt 0:00:23]} Qe5 {[%emt 0:00:22]} 58. Qc4 {[%emt 0:00:06]} Qxb8 {[%emt 0:00:04]} 0-1

[Event "16th Deltalift Open 2019"]
[Site "Halmstad"]
[Date "2019.05.30"]
[Round "3.5"]
[White "Brynell, Stellan"]
[Black "Petersson, Baldur Teodor"]
[Result "1-0"]
[ECO "A05"]
[WhiteElo "2406"]
[BlackElo "2163"]
[Annotator "ChessBase"]
[PlyCount "77"]
[EventDate "2019.05.30"]
[EventType "swiss"]
[EventCountry "SWE"]
[SourceTitle "playchess.com"]
[Source "ChessBase"]
[SourceQuality "1"]
[TimeControl "1800+12"]

1. Nf3 {[%emt 0:00:00]} Nf6 {[%emt 0:00:00]} 2. c4 {[%emt 0:00:00]} g6 {[%emt 0:00:01]} 3. b3 {[%emt 0:00:00]} Bg7 {[%emt 0:00:10]} 4. Bb2 {[%emt 0:00:00]} O-O {[%emt 0:00:09]} 5. g3 {[%emt 0:00:00]} c5 {[%emt 0:00:20]} 6. Bg2 {[%emt 0:00:02]} Nc6 {[%emt 0:00:06]} 7. O-O {[%emt 0:00:06]} d5 {[%emt 0:01:00]} 8. cxd5 {[%emt 0:00:07]} Nxd5 {[%emt 0:00:06]} 9. Bxg7 {[%emt 0:00:03]} Kxg7 {[%emt 0:00:08]} 10. d4 {[%emt 0:00:02]} cxd4 {[%emt 0:02:13]} 11. Nxd4 {[%emt 0:01:34]} Ndb4 {[%emt 0:00:10]} 12. Nxc6 {[%emt 0:01:09]} Nxc6 {[%emt 0:00:07]} 13. Bxc6 {[%emt 0:00:17]} bxc6 {[%emt 0:00:25]} 14. Qxd8 {[%emt 0:00:05]} Rxd8 {[%emt 0:00:07]} 15. Nc3 {[%emt 0:00:02]} Ba6 {[%emt 0:01:32]} 16. Rfd1 {[%emt 0:00:06]} e5 {[%emt 0:00:59]} 17. Kf1 {[%emt 0:02:09]} Rd4 {[%emt 0:01:47]} 18. Ke1 {[%emt 0:03:01]} Rad8 {[%emt 0:01:36]} 19. Rac1 {[%emt 0:02:33]} Kf8 {[%emt 0:06:10]} 20. e3 {[%emt 0:12:30]} Rxd1+ {[%emt 0:01:37]} 21. Nxd1 {[%emt 0:00:18]} Rd6 {[%emt 0:01:44]} 22. Rc5 {[%emt 0:00:11]} Rd5 {[%emt 0:02:32]} 23. Rxc6 {[%emt 0:00:25]} Ra5 {[%emt 0:00:07]} 24. Nc3 {[%emt 0:00:31]} Bb7 {[%emt 0:00:20]} 25. Rc7 {[%emt 0:00:19]} Bf3 {[%emt 0:00:20]} 26. Kd2 {[%emt 0:00:46]} Ra6 {[%emt 0:01:00]} 27. Kc2 {[%emt 0:02:06]} h5 {[%emt 0:00:37]} 28. b4 {[%emt 0:00:25]} Bg4 {[%emt 0:01:32]} 29. b5 {[%emt 0:00:37]} Rf6 {[%emt 0:00:11]} 30. f4 {[%emt 0:00:06]} exf4 {[%emt 0:00:27]} 31. gxf4 {[%emt 0:02:12]} a6 {[%emt 0:00:41]} 32. a4 {[%emt 0:00:21]} axb5 {[%emt 0:01:20]} 33. axb5 {[%emt 0:00:01]} Rb6 {[%emt 0:00:31]} 34. Kb3 {[%emt 0:00:19]} Ke8 {[%emt 0:01:33]} 35. Kb4 {[%emt 0:00:03]} Bd7 {[%emt 0:00:50]} 36. Kc5 {[%emt 0:00:05]} Rb8 {[%emt 0:00:01]} 37. b6 {[%emt 0:00:17]} Rc8 {[%emt 0:02:19]} 38. Kd6 {[%emt 0:00:46]} Rxc7 {[%emt 0:00:27]} 39. Kxc7 {[%emt 0:00:03]} 1-0

[Event "16th Deltalift Open 2019"]
[Site "Halmstad"]
[Date "2019.05.30"]
[Round "3.6"]
[White "Sjoberg, Isak"]
[Black "Jepson, Christian"]
[Result "0-1"]
[ECO "C57"]
[WhiteElo "2208"]
[BlackElo "2395"]
[Annotator "ChessBase"]
[PlyCount "83"]
[EventDate "2019.05.30"]
[EventType "swiss"]
[EventCountry "SWE"]
[SourceTitle "playchess.com"]
[Source "ChessBase"]
[SourceQuality "1"]
[TimeControl "1800+12"]

1. e4 {[%emt 0:00:00]} e5 {[%emt 0:00:00]} 2. Nf3 {[%emt 0:00:03]} Nc6 {[%emt 0:00:00]} 3. Bc4 {[%emt 0:01:02]} Nf6 {[%emt 0:00:00]} 4. Ng5 {[%emt 0:00:23]} d5 {[%emt 0:00:04]} 5. exd5 {[%emt 0:00:04]} b5 {[%emt 0:04:19]} 6. Bf1 {[%emt 0:05:26]} Nd4 {[%emt 0:01:16]} 7. c3 {[%emt 0:01:16]} Nxd5 {[%emt 0:00:11]} 8. cxd4 {[%emt 0:00:27]} Qxg5 {[%emt 0:00:22]} 9. Bxb5+ {[%emt 0:00:06]} Kd8 {[%emt 0:00:10]} 10. Qf3 {[%emt 0:02:35]} Bb7 {[%emt 0:02:24]} 11. h4 {[%emt 0:10:07]} Qf4 {[%emt 0:03:49]} 12. dxe5 {[%emt 0:02:15]} Qxf3 {[%emt 0:10:32]} 13. gxf3 {[%emt 0:00:02]} Nb4 {[%emt 0:00:05]} 14. Na3 {[%emt 0:00:39]} Bxf3 {[%emt 0:00:16]} 15. Rh3 {[%emt 0:00:24]} Bd5 {[%emt 0:00:04]} 16. d4 {[%emt 0:02:31]} Be7 {[%emt 0:00:29]} 17. Bd2 {[%emt 0:01:43]} Rb8 {[%emt 0:00:08]} 18. Bd3 {[%emt 0:01:58]} Nxd3+ {[%emt 0:00:46]} 19. Rxd3 {[%emt 0:00:05]} Rxb2 {[%emt 0:00:04]} 20. Bc1 {[%emt 0:02:28]} Rb6 {[%emt 0:02:14]} 21. Rb1 {[%emt 0:00:25]} Bxh4 {[%emt 0:01:49]} 22. Rxb6 {[%emt 0:00:09]} axb6 {[%emt 0:00:02]} 23. Nc2 {[%emt 0:00:14]} Be7 {[%emt 0:01:10]} 24. Ba3 {[%emt 0:00:06]} Bxa2 {[%emt 0:01:12]} 25. Bxe7+ {[%emt 0:00:11]} Kxe7 {[%emt 0:00:02]} 26. Nb4 {[%emt 0:00:01]} Bc4 {[%emt 0:00:09]} 27. Rg3 {[%emt 0:00:25]} c5 {[%emt 0:00:39]} 28. Nc2 {[%emt 0:00:07]} g6 {[%emt 0:00:30]} 29. dxc5 {[%emt 0:00:02]} b5 {[%emt 0:00:13]} 30. Ra3 {[%emt 0:00:05]} Rc8 {[%emt 0:00:05]} 31. Ra7+ {[%emt 0:00:19]} Ke6 {[%emt 0:00:21]} 32. c6 {[%emt 0:00:26]} Kxe5 {[%emt 0:00:04]} 33. Nb4 {[%emt 0:00:10]} Kd6 {[%emt 0:00:13]} 34. Kd2 {[%emt 0:00:06]} h5 {[%emt 0:00:13]} 35. Kc3 {[%emt 0:00:00]} Kc5 {[%emt 0:00:07]} 36. Rb7 {[%emt 0:00:23]} h4 {[%emt 0:00:11]} 37. c7 {[%emt 0:00:01]} h3 {[%emt 0:00:41]} 38. Rb8 {[%emt 0:00:21]} Be6 {[%emt 0:00:02]} 39. Nd3+ {[%emt 0:00:11]} Kd6 {[%emt 0:00:06]} 40. Rxc8 {[%emt 0:00:20]} Bxc8 {[%emt 0:00:02]} 41. f3 {[%emt 0:00:03]} h2 {[%emt 0:00:06]} 42. Nf2 {[%emt 0:00:02]} 0-1

[Event "16th Deltalift Open 2019"]
[Site "Halmstad"]
[Date "2019.05.30"]
[Round "3.7"]
[White "Pantzar, Milton"]
[Black "Rasti, Arvin"]
[Result "1-0"]
[ECO "A05"]
[WhiteElo "2390"]
[BlackElo "2151"]
[Annotator "ChessBase"]
[PlyCount "115"]
[EventDate "2019.05.30"]
[EventType "swiss"]
[EventCountry "SWE"]
[SourceTitle "playchess.com"]
[Source "ChessBase"]
[SourceQuality "1"]
[TimeControl "1800+12"]

1. Nf3 {[%emt 0:00:19]} Nf6 {[%emt 0:00:01]} 2. e3 {[%emt 0:00:10]} e6 {[%emt 0:00:26]} 3. c4 {[%emt 0:00:48]} b6 {[%emt 0:00:24]} 4. b3 {[%emt 0:00:27]} Bb7 {[%emt 0:00:07]} 5. Bb2 {[%emt 0:00:02]} c5 {[%emt 0:00:07]} 6. g3 {[%emt 0:01:01]} Be7 {[%emt 0:00:36]} 7. Bg2 {[%emt 0:00:02]} O-O {[%emt 0:00:35]} 8. O-O {[%emt 0:00:03]} d5 {[%emt 0:01:28]} 9. Nc3 {[%emt 0:00:08]} Nbd7 {[%emt 0:01:44]} 10. Qe2 {[%emt 0:01:14]} Rc8 {[%emt 0:00:44]} 11. Rac1 {[%emt 0:02:15]} Qc7 {[%emt 0:01:54]} 12. cxd5 {[%emt 0:00:28]} exd5 {[%emt 0:00:12]} 13. d4 {[%emt 0:00:15]} Qb8 {[%emt 0:00:25]} 14. Rfd1 {[%emt 0:00:20]} Rfd8 {[%emt 0:00:56]} 15. Ne5 {[%emt 0:05:24]} Qa8 {[%emt 0:05:44]} 16. Nxd7 {[%emt 0:01:09]} Nxd7 {[%emt 0:00:16]} 17. dxc5 {[%emt 0:01:17]} Nxc5 {[%emt 0:00:01]} 18. Nb5 {[%emt 0:00:21]} Ne6 {[%emt 0:02:14]} 19. Nd4 {[%emt 0:00:27]} Rxc1 {[%emt 0:00:41]} 20. Rxc1 {[%emt 0:00:11]} Nxd4 {[%emt 0:02:38]} 21. Bxd4 {[%emt 0:00:06]} Bc8 {[%emt 0:00:18]} 22. Qh5 {[%emt 0:08:56]} Be6 {[%emt 0:03:39]} 23. Qe5 {[%emt 0:00:20]} Bf6 {[%emt 0:01:02]} 24. Qf4 {[%emt 0:00:04]} Bxd4 {[%emt 0:00:39]} 25. Qxd4 {[%emt 0:00:14]} h6 {[%emt 0:01:53]} 26. Rd1 {[%emt 0:01:32]} Rc8 {[%emt 0:01:01]} 27. Bxd5 {[%emt 0:00:42]} Bxd5 {[%emt 0:00:30]} 28. Qxd5 {[%emt 0:00:02]} Qxd5 {[%emt 0:00:01]} 29. Rxd5 {[%emt 0:00:02]} Rc2 {[%emt 0:00:50]} 30. a4 {[%emt 0:00:04]} Kf8 {[%emt 0:00:51]} 31. Rd4 {[%emt 0:01:04]} Ke7 {[%emt 0:00:59]} 32. Kg2 {[%emt 0:01:29]} Ke6 {[%emt 0:00:17]} 33. Rd3 {[%emt 0:03:45]} f5 {[%emt 0:01:25]} 34. h3 {[%emt 0:00:22]} Rb2 {[%emt 0:00:47]} 35. g4 {[%emt 0:00:13]} g5 {[%emt 0:00:29]} 36. gxf5+ {[%emt 0:00:03]} Kxf5 {[%emt 0:00:01]} 37. Kf3 {[%emt 0:00:10]} h5 {[%emt 0:00:29]} 38. Rd5+ {[%emt 0:00:13]} Kf6 {[%emt 0:00:11]} 39. Rb5 {[%emt 0:00:02]} Kg6 {[%emt 0:00:17]} 40. Kg3 {[%emt 0:00:23]} Rc2 {[%emt 0:00:39]} 41. a5 {[%emt 0:00:38]} bxa5 42. Rxa5 {[%emt 0:00:01]} Rb2 {[%emt 0:00:29]} 43. Ra6+ {[%emt 0:00:12]} Kf5 {[%emt 0:00:05]} 44. Ra5+ {[%emt 0:00:07]} Kg6 {[%emt 0:00:11]} 45. Rb5 {[%emt 0:00:18]} a6 {[%emt 0:00:04]} 46. Rb4 {[%emt 0:00:28]} Rb1 {[%emt 0:00:30]} 47. Rb8 {[%emt 0:00:35]} Rg1+ {[%emt 0:00:09]} 48. Kf3 {[%emt 0:00:06]} Rb1 {[%emt 0:00:07]} 49. Ke4 {[%emt 0:00:17]} Rb2 {[%emt 0:00:07]} 50. Rb6+ {[%emt 0:00:02]} Kg7 {[%emt 0:00:14]} 51. f4 {[%emt 0:00:19]} g4 {[%emt 0:00:16]} 52. hxg4 {[%emt 0:00:02]} hxg4 {[%emt 0:00:01]} 53. Rxa6 {[%emt 0:00:29]} Rxb3 {[%emt 0:00:21]} 54. Ra5 {[%emt 0:00:11]} Rb4+ {[%emt 0:00:21]} 55. Kf5 {[%emt 0:00:08]} g3 {[%emt 0:00:02]} 56. Kg4 {[%emt 0:00:21]} g2 {[%emt 0:00:20]} 57. Rg5+ {[%emt 0:00:03]} Kf6 {[%emt 0:00:04]} 58. Kf3 {[%emt 0:00:02]} 1-0